[Event "Colombia Tierra de Atletas-B 2020"]
[Site "Medellin"]
[Date "2020.12.12"]
[Round "2.4"]
[White "Morales, Jhon Alexander"]
[Black "Pazos Gambarrotti, Plinio"]
[Result "1-0"]
[ECO "A57"]
[WhiteElo "2400"]
[BlackElo "2109"]
[Annotator "RC"]
[PlyCount "75"]
[EventDate "2020.12.10"]
[EventType "tourn"]
[EventCountry "COL"]
[SourceTitle "playchess.com"]
[Source "ChessBase"]
[SourceQuality "1"]
[TimeControl "40/5400+30:1800+30"]

1. d4 {[%emt 0:00:00]} Nf6 {[%emt 0:00:25]} 2. c4 {[%emt 0:00:11]} c5 {[%emt 0:01:24]} 3. Nf3 {[%emt 0:00:09]} g6 {[%emt 0:00:09]} 4. d5 {[%emt 0:00:48]} b5 {[%emt 0:00:07]} 5. cxb5 {[%emt 0:00:05]} a6 {[%emt 0:00:05]} 6. b6 {[%emt 0:00:08]} d6 {[%emt 0:00:05]} 7. Nc3 {[%emt 0:00:09]} Nbd7 {[%emt 0:00:15]} 8. e4 {[%emt 0:06:58]} Rb8 {[%emt 0:00:38]} 9. Be2 {[%emt 0:00:55]} Bg7 {[%emt 0:00:06]} 10. O-O {[%emt 0:00:21]} O-O {[%emt 0:00:24]} 11. a4 {[%emt 0:05:31]} Nxb6 {[%emt 0:00:52]} 12. Re1 {[%emt 0:26:01]} Nfd7 {[%emt 0:08:49]} 13. Nd2 {[%emt 0:04:39]} f5 {[%emt 0:05:42]} 14. exf5 {[%emt 0:09:34]} gxf5 {[%emt 0:00:45]} 15. Nf3 {[%emt 0:00:35]} Nf6 {[%emt 0:04:43]} 16. Ng5 {[%emt 0:09:11]} Na8 {[%emt 0:07:46]} 17. Bf3 {[%emt 0:12:20]} Nc7 {[%emt 0:01:31]} 18. Qc2 {[%emt 0:02:14]} Nd7 {[%emt 0:04:23]} 19. Nh3 {[%emt 0:05:22]} Ne5 {[%emt 0:00:46]} 20. Be2 {[%emt 0:00:06]} Ng6 {[%emt 0:01:14]} 21. Bh5 {[%emt 0:05:17]} Bd7 {[%emt 0:04:37]} 22. Bg5 {[%emt 0:00:41]} Be5 {[%emt 0:01:40]} 23. Bxg6 {[%emt 0:00:38]} hxg6 {[%emt 0:00:06]} 24. Rxe5 {[%emt 0:00:24]} dxe5 {[%emt 0:00:46]} 25. d6 {[%emt 0:00:07]} Rf7 {[%emt 0:00:14]} 26. dxc7 {[%emt 0:00:41]} Qxc7 {[%emt 0:00:14]} 27. Nd5 {[%emt 0:00:35]} Qb7 {[%emt 0:01:36]} 28. Nxe7+ {[%emt 0:02:35]} Kg7 {[%emt 0:00:06]} 29. Qxc5 {[%emt 0:03:12]} Qxb2 {[%emt 0:00:37]} 30. Rf1 {[%emt 0:03:14]} Bxa4 {[%emt 0:00:25]} 31. Qd6 {[%emt 0:01:07]} Rb6 {[%emt 0:00:36]} 32. Qd5 {[%emt 0:01:16]} Rb5 {[%emt 0:01:23]} 33. Qa8 {[%emt 0:00:13]} Rb8 {[%emt 0:00:14]} 34. Qxa6 {[%emt 0:00:13]} Kf8 {[%emt 0:02:58]} 35. Nxg6+ {[%emt 0:00:26]} Kg7 {[%emt 0:00:07]} 36. Ne7 {[%emt 0:00:38]} Kf8 {[%emt 0:00:07]} 37. Qxa4 {[%emt 0:00:25]} Qb5 {[%emt 0:00:30]} 38. Qh4 {[%emt 0:00:20]} 1-0

[Event "Colombia Tierra de Atletas-B 2020"]
[Site "Medellin"]
[Date "2020.12.12"]
[Round "3.4"]
[White "Escobar Medina, Andres F"]
[Black "Morales, Jhon Alexander"]
[Result "1-0"]
[ECO "B40"]
[WhiteElo "2249"]
[BlackElo "2400"]
[Annotator "RC"]
[PlyCount "75"]
[EventDate "2020.12.10"]
[EventType "tourn"]
[EventCountry "COL"]
[SourceTitle "playchess.com"]
[Source "ChessBase"]
[SourceQuality "1"]
[TimeControl "40/5400+30:1800+30"]

1. e4 {[%emt 0:02:31]} c5 {[%emt 0:00:45]} 2. Nf3 {[%emt 0:00:23]} e6 {[%emt 0:00:36]} 3. g3 {[%emt 0:01:30]} b6 {[%emt 0:03:04]} 4. Bg2 {[%emt 0:01:08]} Bb7 {[%emt 0:00:30]} 5. Qe2 {[%emt 0:00:07]} d6 {[%emt 0:00:35]} 6. d4 {[%emt 0:04:18]} cxd4 {[%emt 0:18:05]} 7. Nxd4 {[%emt 0:00:05]} Nc6 {[%emt 0:00:27]} 8. Nxc6 {[%emt 0:00:47]} Bxc6 {[%emt 0:00:05]} 9. O-O {[%emt 0:00:08]} Be7 {[%emt 0:01:30]} 10. Nc3 {[%emt 0:05:29]} Qc8 {[%emt 0:16:40]} 11. Rd1 {[%emt 0:02:11]} a6 {[%emt 0:22:35]} 12. Be3 {[%emt 0:07:38]} Qc7 {[%emt 0:02:44]} 13. Rd2 {[%emt 0:04:08]} b5 {[%emt 0:08:09]} 14. a3 {[%emt 0:04:13]} Nf6 {[%emt 0:01:11]} 15. Bf4 {[%emt 0:03:27]} O-O {[%emt 0:01:46]} 16. e5 {[%emt 0:01:43]} dxe5 {[%emt 0:00:11]} 17. Bxe5 {[%emt 0:00:04]} Qb7 {[%emt 0:00:16]} 18. Bxc6 {[%emt 0:00:23]} Qxc6 {[%emt 0:00:06]} 19. Rad1 {[%emt 0:00:08]} Rfc8 {[%emt 0:01:54]} 20. Bxf6 {[%emt 0:06:02]} Bxf6 {[%emt 0:01:45]} 21. Rd6 {[%emt 0:00:07]} Qc4 {[%emt 0:02:49]} 22. Qf3 {[%emt 0:00:08]} h6 {[%emt 0:03:30]} 23. Rd7 {[%emt 0:00:29]} Rf8 {[%emt 0:05:03]} 24. R1d3 {[%emt 0:02:55]} Rac8 {[%emt 0:03:25]} 25. Ne4 {[%emt 0:00:10]} Be5 {[%emt 0:00:33]} 26. c3 {[%emt 0:02:01]} Qc6 {[%emt 0:00:55]} 27. Nd2 {[%emt 0:02:13]} Bf6 {[%emt 0:03:14]} 28. Ne4 {[%emt 0:02:54]} Be5 {[%emt 0:00:06]} 29. Nd2 {[%emt 0:01:25]} Bf6 {[%emt 0:00:56]} 30. Qxc6 {[%emt 0:02:11]} Rxc6 {[%emt 0:00:04]} 31. Ra7 {[%emt 0:02:07]} Bd8 {[%emt 0:00:29]} 32. Kg2 {[%emt 0:00:26]} Bc7 {[%emt 0:00:51]} 33. Nf3 {[%emt 0:08:16]} e5 {[%emt 0:00:15]} 34. Rd7 {[%emt 0:00:31]} Rc8 {[%emt 0:00:07]} 35. Rxf7 {[%emt 0:09:34]} e4 {[%emt 0:01:23]} 36. Nd4 {[%emt 0:00:04]} Rc4 {[%emt 0:00:08]} 37. Re7 {[%emt 0:00:59]} Kh8 {[%emt 0:00:26]} 38. Rxa6 {[%emt 0:00:29]} 1-0

[Event "Colombia Tierra de Atletas-B 2020"]
[Site "Medellin"]
[Date "2020.12.12"]
[Round "3.5"]
[White "Palencia Morales, Wilson Guillermo"]
[Black "Malka, Samuel"]
[Result "0-1"]
[ECO "B76"]
[WhiteElo "2340"]
[BlackElo "2203"]
[Annotator "RC"]
[PlyCount "96"]
[EventDate "2020.12.10"]
[EventType "tourn"]
[EventCountry "COL"]
[SourceTitle "playchess.com"]
[Source "ChessBase"]
[SourceQuality "1"]
[TimeControl "40/5400+30:1800+30"]

1. e4 {[%emt 0:02:41]} c5 {[%emt 0:00:00]} 2. Nf3 {[%emt 0:00:09]} d6 {[%emt 0:00:00]} 3. d4 {[%emt 0:00:06]} cxd4 4. Nxd4 {[%emt 0:00:06]} Nf6 {[%emt 0:00:00]} 5. Nc3 {[%emt 0:00:07]} g6 {[%emt 0:00:00]} 6. Be3 {[%emt 0:00:08]} Bg7 {[%emt 0:00:00]} 7. f3 {[%emt 0:00:16]} O-O {[%emt 0:00:00]} 8. Qd2 {[%emt 0:00:03]} Nc6 {[%emt 0:00:00]} 9. g4 {[%emt 0:00:08]} Be6 {[%emt 0:00:02]} 10. O-O-O {[%emt 0:06:35]} Nxd4 {[%emt 0:00:17]} 11. Bxd4 {[%emt 0:00:11]} Qa5 {[%emt 0:00:01]} 12. Kb1 {[%emt 0:02:52]} Rfc8 {[%emt 0:04:47]} 13. Nd5 {[%emt 0:06:30]} Qxd2 {[%emt 0:00:23]} 14. Nxf6+ {[%emt 0:00:07]} Bxf6 {[%emt 0:00:37]} 15. Rxd2 {[%emt 0:00:05]} Bxd4 {[%emt 0:04:17]} 16. Rxd4 {[%emt 0:00:26]} Rc5 {[%emt 0:03:13]} 17. Rb4 {[%emt 0:07:49]} b6 {[%emt 0:03:24]} 18. Be2 {[%emt 0:01:27]} Rac8 {[%emt 0:02:43]} 19. c3 {[%emt 0:05:35]} Kg7 {[%emt 0:03:36]} 20. h4 {[%emt 0:02:06]} f6 {[%emt 0:04:12]} 21. f4 {[%emt 0:02:57]} Bc4 {[%emt 0:06:03]} 22. Bxc4 {[%emt 0:03:54]} Rxc4 {[%emt 0:00:13]} 23. Rxc4 {[%emt 0:00:06]} Rxc4 {[%emt 0:00:08]} 24. Re1 {[%emt 0:00:01]} Kf7 {[%emt 0:05:12]} 25. Kc2 {[%emt 0:07:12]} f5 {[%emt 0:02:44]} 26. Kd3 {[%emt 0:21:30]} Ra4 {[%emt 0:00:15]} 27. a3 {[%emt 0:10:09]} fxg4 {[%emt 0:04:52]} 28. c4 {[%emt 0:00:16]} Ra5 {[%emt 0:03:25]} 29. Rg1 {[%emt 0:00:10]} h5 {[%emt 0:00:17]} 30. Ra1 {[%emt 0:00:32]} Rc5 {[%emt 0:00:51]} 31. b4 {[%emt 0:00:17]} Rc8 {[%emt 0:00:34]} 32. a4 {[%emt 0:04:37]} a5 {[%emt 0:04:06]} 33. bxa5 {[%emt 0:00:36]} bxa5 {[%emt 0:00:11]} 34. Rb1 {[%emt 0:00:05]} Kf6 {[%emt 0:06:18]} 35. Rb5 {[%emt 0:07:00]} Rc5 {[%emt 0:02:12]} 36. Rb6 {[%emt 0:02:00]} g3 {[%emt 0:16:49]} 37. Rb1 {[%emt 0:00:33]} e5 {[%emt 0:01:00]} 38. Rf1 {[%emt 0:00:20]} Rc8 {[%emt 0:10:13]} 39. fxe5+ {[%emt 0:01:31]} Kxe5 {[%emt 0:00:03]} 40. Rf3 {[%emt 0:00:00]} Rb8 {[%emt 0:00:00]} 41. Kc3 {[%emt 0:00:25]} g5 {[%emt 0:04:19]} 42. Rf5+ {[%emt 0:15:25]} Kxe4 {[%emt 0:00:19]} 43. Rxg5 {[%emt 0:00:01]} Kf3 {[%emt 0:02:31]} 44. Kd4 {[%emt 0:01:03]} g2 {[%emt 0:02:31]} 45. Kd5 {[%emt 0:00:06]} Rb1 {[%emt 0:00:48]} 46. Kxd6 {[%emt 0:00:40]} g1=Q {[%emt 0:00:22]} 47. Rxg1 {[%emt 0:00:07]} Rxg1 {[%emt 0:00:04]} 48. c5 {[%emt 0:00:10]} Rg4 {[%emt 0:40:08]} 0-1

[Event "Colombia Tierra de Atletas-B 2020"]
[Site "Medellin"]
[Date "2020.12.13"]
[Round "4.4"]
[White "Brizuela Abreu, Ronald Jesus"]
[Black "Pazos Gambarrotti, Plinio"]
[Result "1/2-1/2"]
[ECO "D38"]
[WhiteElo "2361"]
[BlackElo "2109"]
[Annotator "ChessBase"]
[PlyCount "118"]
[EventDate "2020.12.10"]
[EventType "tourn"]
[EventCountry "COL"]
[SourceTitle "playchess.com"]
[Source "ChessBase"]
[SourceQuality "1"]
[TimeControl "40/5400+30:1800+30"]

1. d4 {[%emt 0:00:00]} Nf6 {[%emt 0:00:00]} 2. c4 {[%emt 0:00:00]} e6 {[%emt 0:00:07]} 3. Nc3 {[%emt 0:00:00]} d5 {[%emt 0:00:11]} 4. Nf3 {[%emt 0:00:02]} Bb4 {[%emt 0:00:17]} 5. Qa4+ {[%emt 0:00:37]} Nc6 {[%emt 0:00:07]} 6. Bg5 {[%emt 0:00:42]} Bd7 {[%emt 0:06:01]} 7. Qb3 {[%emt 0:03:53]} dxc4 {[%emt 0:02:42]} 8. Qxc4 {[%emt 0:00:55]} h6 {[%emt 0:04:22]} 9. Bh4 {[%emt 0:01:33]} g5 {[%emt 0:08:17]} 10. Bg3 {[%emt 0:00:02]} Ne4 {[%emt 0:01:47]} 11. e3 {[%emt 0:00:36]} h5 {[%emt 0:18:22]} 12. Bd3 {[%emt 0:04:17]} Nd6 {[%emt 0:03:12]} 13. Qb3 {[%emt 0:00:19]} Qe7 {[%emt 0:04:39]} 14. h4 {[%emt 0:01:24]} g4 {[%emt 0:01:36]} 15. Ne5 {[%emt 0:01:27]} Nf5 {[%emt 0:02:21]} 16. Bxf5 {[%emt 0:04:40]} exf5 {[%emt 0:00:15]} 17. Nxd7 {[%emt 0:00:03]} Kxd7 {[%emt 0:07:22]} 18. Qd5+ {[%emt 0:03:02]} Kc8 {[%emt 0:00:05]} 19. Qxf5+ {[%emt 0:00:08]} Kb8 {[%emt 0:00:02]} 20. O-O {[%emt 0:00:13]} Bd6 {[%emt 0:00:52]} 21. Nd5 {[%emt 0:01:15]} Qd8 {[%emt 0:02:01]} 22. Bxd6 {[%emt 0:01:10]} Qxd6 {[%emt 0:00:11]} 23. g3 {[%emt 0:00:52]} Ne7 {[%emt 0:00:48]} 24. Nxe7 {[%emt 0:00:13]} Qxe7 {[%emt 0:00:04]} 25. Rfc1 {[%emt 0:00:03]} Qe6 {[%emt 0:00:39]} 26. Rc5 {[%emt 0:00:45]} b6 {[%emt 0:00:33]} 27. Qxe6 {[%emt 0:00:27]} fxe6 {[%emt 0:00:05]} 28. Re5 {[%emt 0:00:09]} Rh6 {[%emt 0:00:11]} 29. Rc1 {[%emt 0:00:03]} Kb7 {[%emt 0:00:20]} 30. b4 {[%emt 0:00:27]} Rd8 {[%emt 0:00:30]} 31. Kf1 {[%emt 0:00:36]} Rd5 {[%emt 0:00:21]} 32. Re4 {[%emt 0:00:39]} a5 {[%emt 0:00:24]} 33. a3 {[%emt 0:01:19]} Kc8 {[%emt 0:01:39]} 34. Rf4 {[%emt 0:00:17]} Rh7 {[%emt 0:00:54]} 35. Ke2 {[%emt 0:00:27]} Kd7 {[%emt 0:00:19]} 36. Kd3 {[%emt 0:00:13]} axb4 {[%emt 0:00:20]} 37. axb4 {[%emt 0:00:02]} e5 {[%emt 0:00:15]} 38. Rf5 {[%emt 0:00:22]} Re7 {[%emt 0:01:40]} 39. Ke4 {[%emt 0:01:33]} Rb5 {[%emt 0:00:29]} 40. Rxe5 {[%emt 0:00:00]} Rexe5+ {[%emt 0:00:00]} 41. dxe5 {[%emt 0:01:31]} Rxb4+ {[%emt 0:00:18]} 42. Kf5 {[%emt 0:00:08]} Rb2 {[%emt 0:00:16]} 43. e6+ {[%emt 0:00:57]} Kd8 {[%emt 0:00:26]} 44. Kg5 {[%emt 0:02:12]} c5 {[%emt 0:00:52]} 45. Kxh5 {[%emt 0:00:08]} Ke7 {[%emt 0:00:29]} 46. Kxg4 {[%emt 0:00:14]} Rxf2 {[%emt 0:00:20]} 47. Rb1 {[%emt 0:00:26]} Kxe6 {[%emt 0:00:12]} 48. Rxb6+ {[%emt 0:00:02]} Kd5 {[%emt 0:00:06]} 49. h5 {[%emt 0:00:21]} c4 {[%emt 0:00:06]} 50. Rb5+ {[%emt 0:00:04]} Ke4 {[%emt 0:00:09]} 51. Rc5 {[%emt 0:00:07]} Kd3 {[%emt 0:00:08]} 52. h6 {[%emt 0:00:15]} c3 {[%emt 0:00:05]} 53. Kg5 {[%emt 0:00:52]} c2 {[%emt 0:00:26]} 54. h7 {[%emt 0:00:37]} Rh2 {[%emt 0:00:24]} 55. g4 {[%emt 0:00:09]} Rxh7 {[%emt 0:00:14]} 56. e4 {[%emt 0:00:50]} Re7 {[%emt 0:01:30]} 57. Kf5 {[%emt 0:00:49]} Rxe4 {[%emt 0:00:37]} 58. Rxc2 {[%emt 0:00:18]} Rxg4 {[%emt 0:00:06]} 59. Kxg4 {[%emt 0:00:05]} Kxc2 {[%emt 0:00:03]} 1/2-1/2

[Event "Colombia Tierra de Atletas-B 2020"]
[Site "Medellin"]
[Date "2020.12.13"]
[Round "5.1"]
[White "Pazos Gambarrotti, Plinio"]
[Black "Hernandez Sanchez, Jairo Andres"]
[Result "1/2-1/2"]
[ECO "E70"]
[WhiteElo "2109"]
[BlackElo "2394"]
[Annotator "ChessBase"]
[PlyCount "31"]
[EventDate "2020.12.10"]
[EventType "tourn"]
[EventCountry "COL"]
[SourceTitle "playchess.com"]
[Source "ChessBase"]
[SourceQuality "1"]
[TimeControl "40/5400+30:1800+30"]

1. d4 {[%emt 0:03:24]} Nf6 {[%emt 0:00:00]} 2. c4 {[%emt 0:00:05]} g6 {[%emt 0:00:10]} 3. Nc3 {[%emt 0:00:06]} Bg7 {[%emt 0:00:24]} 4. e4 {[%emt 0:00:06]} d6 {[%emt 0:00:05]} 5. Nge2 {[%emt 0:00:11]} O-O {[%emt 0:00:17]} 6. Ng3 {[%emt 0:00:05]} e5 {[%emt 0:03:36]} 7. d5 {[%emt 0:04:40]} a5 {[%emt 0:00:16]} 8. Be2 {[%emt 0:00:06]} Na6 {[%emt 0:00:06]} 9. h4 {[%emt 0:00:06]} h5 {[%emt 0:00:25]} 10. Bg5 {[%emt 0:00:09]} Qe8 {[%emt 0:00:29]} 11. Qd2 {[%emt 0:00:17]} Nc5 {[%emt 0:00:28]} 12. Bh6 {[%emt 0:00:15]} Ng4 {[%emt 0:12:37]} 13. Bxg7 {[%emt 0:01:40]} Kxg7 {[%emt 0:00:12]} 14. Bxg4 {[%emt 0:00:24]} Bxg4 {[%emt 0:02:34]} 15. f3 {[%emt 0:00:23]} Bd7 {[%emt 0:00:36]} 16. Nxh5+ {[%emt 0:00:10]} 1/2-1/2

[Event "Colombia Tierra de Atletas-B 2020"]
[Site "Medellin"]
[Date "2020.12.13"]
[Round "5.2"]
[White "Argote Heredia, Valentina"]
[Black "Heredia Serrano, Carla"]
[Result "0-1"]
[ECO "B18"]
[WhiteElo "2150"]
[BlackElo "2114"]
[Annotator "NA"]
[PlyCount "52"]
[EventDate "2020.12.10"]
[EventType "tourn"]
[EventCountry "COL"]
[SourceTitle "playchess.com"]
[Source "ChessBase"]
[SourceQuality "1"]
[TimeControl "40/5400+30:1800+30"]

1. e4 {[%emt 0:00:51]} c6 {[%emt 0:05:39]} 2. d4 {[%emt 0:00:21]} d5 {[%emt 0:00:07]} 3. Nc3 {[%emt 0:00:07]} dxe4 {[%emt 0:00:04]} 4. Nxe4 {[%emt 0:00:06]} Bf5 {[%emt 0:00:02]} 5. Ng3 {[%emt 0:00:08]} Bg6 {[%emt 0:00:04]} 6. h4 {[%emt 0:00:07]} h6 {[%emt 0:00:04]} 7. Nh3 {[%emt 0:00:11]} e6 {[%emt 0:00:13]} 8. Nf4 {[%emt 0:03:11]} Bh7 {[%emt 0:00:05]} 9. Bc4 {[%emt 0:00:08]} Nf6 {[%emt 0:00:10]} 10. O-O {[%emt 0:00:25]} Bd6 {[%emt 0:00:28]} 11. c3 {[%emt 0:02:37]} O-O {[%emt 0:00:28]} 12. Re1 {[%emt 0:07:43]} Nbd7 {[%emt 0:05:18]} 13. Nxe6 {[%emt 0:05:48]} fxe6 {[%emt 0:23:19]} 14. Rxe6 {[%emt 0:00:10]} Bxg3 {[%emt 0:00:04]} 15. Rxf6+ {[%emt 0:04:57]} Kh8 {[%emt 0:00:10]} 16. Rxf8+ {[%emt 0:00:08]} Qxf8 {[%emt 0:00:11]} 17. fxg3 {[%emt 0:00:07]} Nf6 {[%emt 0:00:10]} 18. Bf4 {[%emt 0:03:47]} Re8 {[%emt 0:01:27]} 19. Bd3 {[%emt 0:03:40]} Nd5 {[%emt 0:20:33]} 20. Bxh7 {[%emt 0:07:26]} Nxf4 {[%emt 0:00:08]} 21. Bc2 {[%emt 0:04:36]} Ne2+ {[%emt 0:02:53]} 22. Kh2 {[%emt 0:00:04]} Re3 {[%emt 0:00:19]} 23. Qf1 {[%emt 0:16:16]} Qd6 {[%emt 0:03:30]} 24. Qf2 {[%emt 0:05:55]} Nxg3 {[%emt 0:00:13]} 25. Re1 {[%emt 0:02:36]} Nf1+ {[%emt 0:04:17]} 26. Kg1 {[%emt 0:00:16]} Qh2+ {[%emt 0:33:04]} 0-1

[Event "Colombia Tierra de Atletas-B 2020"]
[Site "Medellin"]
[Date "2020.12.15"]
[Round "7.1"]
[White "Pazos Gambarrotti, Plinio"]
[Black "Heredia Serrano, Carla"]
[Result "0-1"]
[ECO "D15"]
[WhiteElo "2109"]
[BlackElo "2114"]
[Annotator "ChessBase"]
[PlyCount "84"]
[EventDate "2020.12.10"]
[EventType "tourn"]
[EventCountry "COL"]
[SourceTitle "playchess.com"]
[Source "ChessBase"]
[SourceQuality "1"]
[TimeControl "40/5400+30:1800+30"]

1. Nf3 {[%emt 0:05:36]} d5 {[%emt 0:00:00]} 2. c4 {[%emt 0:00:15]} c6 {[%emt 0:00:15]} 3. e3 {[%emt 0:01:47]} Nf6 {[%emt 0:00:47]} 4. Nc3 {[%emt 1:24:22]} a6 {[%emt 0:13:44]} 5. d4 {[%emt 0:00:30]} b5 {[%emt 0:00:46]} 6. cxd5 {[%emt 0:00:00]} cxd5 {[%emt 0:00:06]} 7. Bd3 {[%emt 0:00:00]} Bb7 {[%emt 0:01:02]} 8. O-O {[%emt 0:00:00]} Nbd7 {[%emt 0:04:13]} 9. Ne5 e6 {[%emt 0:00:00]} 10. Bd2 {[%emt 0:02:30]} Be7 {[%emt 1:14:07]} 11. f4 {[%emt 0:00:00]} O-O {[%emt 0:00:00]} 12. Rf3 {[%emt 0:00:00]} Ne4 {[%emt 0:00:00]} 13. a3 {[%emt 0:00:00]} f5 {[%emt 0:00:00]} 14. Rh3 {[%emt 0:00:00]} Rc8 {[%emt 0:00:00]} 15. Qe2 {[%emt 0:00:00]} Ndf6 {[%emt 0:00:00]} 16. Kh1 {[%emt 0:00:00]} Bd6 {[%emt 0:00:00]} 17. Be1 {[%emt 0:00:00]} Qe8 {[%emt 0:00:00]} 18. Na2 {[%emt 0:00:00]} Nd7 {[%emt 0:00:00]} 19. Bb4 {[%emt 0:00:00]} Bxb4 {[%emt 0:00:00]} 20. Nxb4 {[%emt 0:00:00]} Nb6 {[%emt 0:00:00]} 21. Rg1 {[%emt 0:00:00]} a5 {[%emt 0:00:00]} 22. Nc2 {[%emt 0:00:00]} Nc4 {[%emt 0:00:00]} 23. Ne1 {[%emt 0:00:00]} Nxe5 {[%emt 0:01:28]} 24. dxe5 {[%emt 0:00:00]} d4 {[%emt 0:03:35]} 25. exd4 {[%emt 0:00:00]} Rc1 {[%emt 0:00:51]} 26. Rf3 {[%emt 0:00:00]} b4 {[%emt 0:00:32]} 27. axb4 {[%emt 0:00:00]} axb4 {[%emt 0:00:00]} 28. Nc2 {[%emt 0:00:00]} Rxg1+ {[%emt 0:00:08]} 29. Kxg1 {[%emt 0:00:00]} Qa4 {[%emt 0:01:25]} 30. Bc4 {[%emt 0:00:00]} Bd5 {[%emt 0:00:38]} 31. Ne3 {[%emt 0:00:00]} Bxc4 {[%emt 0:00:12]} 32. Qxc4 {[%emt 0:00:00]} Re8 {[%emt 0:01:24]} 33. Nf1 {[%emt 0:00:00]} h6 {[%emt 0:00:33]} 34. Rb3 {[%emt 0:00:00]} Qa1 {[%emt 0:00:25]} 35. Rxb4 {[%emt 0:00:00]} Qe1 {[%emt 0:00:28]} 36. d5 {[%emt 0:00:00]} Nd2 {[%emt 0:00:40]} 37. Qb5 {[%emt 0:00:00]} Nxf1 {[%emt 0:00:29]} 38. Qxe8+ {[%emt 0:00:00]} Kh7 {[%emt 0:00:01]} 39. h3 {[%emt 0:00:00]} Nd2+ {[%emt 0:00:42]} 40. Kh2 {[%emt 0:00:00]} Nf1+ {[%emt 0:00:00]} 41. Kg1 {[%emt 0:00:00]} Ne3+ {[%emt 0:00:35]} 42. Kh2 {[%emt 0:00:00]} Qf2 {[%emt 0:04:39]} 0-1

[Event "Colombia Tierra de Atletas-B 2020"]
[Site "Medellin"]
[Date "2020.12.15"]
[Round "8.1"]
[White "Heredia Serrano, Carla"]
[Black "Morales, Jhon Alexander"]
[Result "0-1"]
[ECO "B51"]
[WhiteElo "2114"]
[BlackElo "2400"]
[Annotator "ChessBase"]
[PlyCount "98"]
[EventDate "2020.12.10"]
[EventType "tourn"]
[EventCountry "COL"]
[SourceTitle "playchess.com"]
[Source "ChessBase"]
[SourceQuality "1"]
[TimeControl "40/5400+30:1800+30"]

1. e4 {[%emt 0:09:09]} c5 {[%emt 0:00:00]} 2. Nf3 {[%emt 0:00:09]} d6 {[%emt 0:00:25]} 3. Bb5+ {[%emt 0:00:08]} Nd7 {[%emt 0:00:09]} 4. O-O {[%emt 0:00:20]} a6 {[%emt 0:00:23]} 5. Bd3 {[%emt 0:00:05]} Ngf6 {[%emt 0:00:44]} 6. Re1 {[%emt 0:00:29]} Qc7 {[%emt 0:24:02]} 7. a4 {[%emt 0:00:17]} b6 {[%emt 0:00:28]} 8. c3 {[%emt 0:00:52]} Bb7 {[%emt 0:00:26]} 9. Na3 {[%emt 0:11:26]} e6 {[%emt 0:01:56]} 10. Qe2 {[%emt 0:03:07]} Be7 {[%emt 0:05:30]} 11. Bc2 {[%emt 0:01:04]} Rc8 {[%emt 0:16:35]} 12. d3 {[%emt 0:11:26]} O-O {[%emt 0:04:23]} 13. h3 {[%emt 0:09:36]} Rfe8 {[%emt 0:01:38]} 14. Bf4 {[%emt 0:00:47]} Bf8 {[%emt 0:00:35]} 15. Bh2 {[%emt 0:12:19]} Qb8 {[%emt 0:14:40]} 16. Rac1 {[%emt 0:12:30]} Qa8 {[%emt 0:02:39]} 17. Nb1 {[%emt 0:10:09]} g6 {[%emt 0:07:24]} 18. Nbd2 {[%emt 0:00:30]} e5 {[%emt 0:00:15]} 19. c4 {[%emt 0:00:15]} Nh5 {[%emt 0:01:17]} 20. Nf1 {[%emt 0:03:48]} Bh6 {[%emt 0:01:27]} 21. Ne3 {[%emt 0:00:24]} Nf8 {[%emt 0:00:21]} 22. a5 {[%emt 0:05:38]} b5 {[%emt 0:03:39]} 23. cxb5 {[%emt 0:00:19]} axb5 {[%emt 0:00:05]} 24. Ra1 {[%emt 0:00:48]} Ne6 {[%emt 0:00:59]} 25. Bb3 {[%emt 0:01:11]} Nhf4 {[%emt 0:00:24]} 26. Bxf4 {[%emt 0:01:08]} Nxf4 {[%emt 0:00:07]} 27. Qd1 {[%emt 0:00:25]} Qa6 {[%emt 0:03:30]} 28. Ng4 {[%emt 0:03:20]} Bg7 {[%emt 0:00:20]} 29. Ng5 {[%emt 0:01:17]} c4 {[%emt 0:00:36]} 30. dxc4 {[%emt 0:00:10]} bxc4 {[%emt 0:00:07]} 31. Ba4 {[%emt 0:00:06]} Rf8 {[%emt 0:03:46]} 32. Qc2 {[%emt 0:02:16]} h6 {[%emt 0:01:55]} 33. Nf3 {[%emt 0:00:04]} Rc5 {[%emt 0:00:37]} 34. b4 {[%emt 0:00:51]} cxb3 {[%emt 0:00:10]} 35. Qxb3 {[%emt 0:00:10]} Rxa5 {[%emt 0:01:16]} 36. Nd2 {[%emt 0:00:30]} Nd3 {[%emt 0:00:25]} 37. Reb1 {[%emt 0:00:41]} Nc5 {[%emt 0:00:20]} 38. Qb6 {[%emt 0:00:38]} Rxa4 {[%emt 0:00:16]} 39. Rxa4 {[%emt 0:00:31]} Qxa4 {[%emt 0:00:08]} 40. Qxd6 {[%emt 0:00:00]} Nxe4 {[%emt 0:00:00]} 41. Qd3 {[%emt 0:03:49]} Nxd2 {[%emt 0:01:38]} 42. Rxb7 {[%emt 0:00:08]} Qa1+ {[%emt 0:00:11]} 43. Kh2 {[%emt 0:00:15]} Nf1+ {[%emt 0:00:22]} 44. Kg1 {[%emt 0:00:24]} Nd2+ {[%emt 0:00:50]} 45. Kh2 {[%emt 0:00:05]} Qd4 {[%emt 0:00:24]} 46. Qe2 {[%emt 0:04:53]} Rc8 {[%emt 0:04:03]} 47. Re7 {[%emt 0:04:23]} Rc1 {[%emt 0:02:26]} 48. Re8+ {[%emt 0:01:41]} Kh7 {[%emt 0:00:14]} 49. Nxe5 {[%emt 0:02:51]} Nf1+ {[%emt 0:00:34]} 0-1